[Event "*** Titled Tuesday Blitz"]
[Site "Chess.com"]
[Date "2021.02.09"]
[Round "9"]
[White "Fandorine"]
[Black "Vincent_Vega95"]
[Result "1-0"]
[WhiteElo "2854"]
[BlackElo "2726"]
[TimeControl "180+1"]
[EndTime "11:44:54 PST"]
[Termination "Fandorine won on time"]

1. e4 {[%clk 0:03:00.9]} 1... c5 {[%clk 0:02:59.4]} 2. Nf3 {[%clk 0:03:00.5]}
2... d6 {[%clk 0:02:59.9]} 3. d4 {[%clk 0:02:59.4]} 3... cxd4 {[%clk 0:03:00.8]}
4. Nxd4 {[%clk 0:02:59.5]} 4... Nf6 {[%clk 0:03:01.3]} 5. Nc3 {[%clk 0:03:00.1]}
5... a6 {[%clk 0:03:01.7]} 6. a3 {[%clk 0:03:00]} 6... e6 {[%clk 0:02:58.8]} 7.
Bd3 {[%clk 0:02:54]} 7... g6 {[%clk 0:02:53.4]} 8. O-O {[%clk 0:02:52.7]} 8...
Bg7 {[%clk 0:02:53.9]} 9. Kh1 {[%clk 0:02:51.1]} 9... O-O {[%clk 0:02:52.9]} 10.
f4 {[%clk 0:02:50.2]} 10... Nbd7 {[%clk 0:02:51.6]} 11. Nb3 {[%clk 0:02:50]}
11... b5 {[%clk 0:02:49.2]} 12. Qe2 {[%clk 0:02:46.5]} 12... Qc7 {[%clk
0:02:47.6]} 13. Bd2 {[%clk 0:02:45.4]} 13... Bb7 {[%clk 0:02:47.6]} 14. Rae1
{[%clk 0:02:45.5]} 14... Bc6 {[%clk 0:02:33.6]} 15. Qf2 {[%clk 0:02:24.7]} 15...
Nb6 {[%clk 0:02:09.5]} 16. Qh4 {[%clk 0:02:13.7]} 16... Nc4 {[%clk 0:02:08.4]}
17. Bc1 {[%clk 0:02:09.9]} 17... Rae8 {[%clk 0:01:25.1]} 18. Nd4 {[%clk
0:01:56.6]} 18... Bb7 {[%clk 0:01:22.6]} 19. Nf3 {[%clk 0:01:48.7]} 19... Qc5
{[%clk 0:01:15]} 20. Nd1 {[%clk 0:01:35.6]} 20... Qh5 {[%clk 0:01:08.6]} 21. Qg3
{[%clk 0:01:29.7]} 21... d5 {[%clk 0:01:07.5]} 22. e5 {[%clk 0:01:25.7]} 22...
Ne4 {[%clk 0:01:07.8]} 23. Bxe4 {[%clk 0:01:24.3]} 23... dxe4 {[%clk 0:01:07.5]}
24. Ng5 {[%clk 0:01:21.8]} 24... f6 {[%clk 0:00:45.9]} 25. exf6 {[%clk
0:01:19.7]} 25... Bxf6 {[%clk 0:00:45.9]} 26. Ne3 {[%clk 0:00:56.5]} 26... Nxe3
{[%clk 0:00:37.8]} 27. Qxe3 {[%clk 0:00:49.9]} 27... Bxg5 {[%clk 0:00:20.7]} 28.
fxg5 {[%clk 0:00:49.8]} 28... Rf5 {[%clk 0:00:17.8]} 29. h3 {[%clk 0:00:46.5]}
29... Qh4 {[%clk 0:00:17.5]} 30. Rxf5 {[%clk 0:00:33.8]} 30... gxf5 {[%clk
0:00:17.5]} 31. Rf1 {[%clk 0:00:33.9]} 31... Bd5 {[%clk 0:00:15.1]} 32. b3
{[%clk 0:00:31.4]} 32... Rc8 {[%clk 0:00:14.1]} 33. Rf2 {[%clk 0:00:24.9]} 33...
Qh5 {[%clk 0:00:13.8]} 34. Kh2 {[%clk 0:00:23.2]} 34... Qd1 {[%clk 0:00:13.5]}
35. g6 {[%clk 0:00:19.1]} 35... hxg6 {[%clk 0:00:10.5]} 36. Bb2 {[%clk
0:00:19.6]} 36... Rxc2 {[%clk 0:00:05.3]} 37. Qh6 {[%clk 0:00:18.3]} 37... Kf7
{[%clk 0:00:05.6]} 38. Qg7+ {[%clk 0:00:18.1]} 38... Ke8 {[%clk 0:00:06.1]} 39.
Bf6 {[%clk 0:00:16.1]} 1-0

[Event "*** Titled Tuesday Blitz"]
[Site "Chess.com"]
[Date "2021.02.09"]
[Round "9"]
[White "The_Machine04"]
[Black "VFernandezB"]
[Result "0-1"]
[WhiteElo "2457"]
[BlackElo "2348"]
[TimeControl "180+1"]
[EndTime "11:44:54 PST"]
[Termination "VFernandezB won by checkmate"]

1. d4 {[%clk 0:03:00.9]} 1... Nf6 {[%clk 0:02:28]} 2. Bg5 {[%clk 0:02:58.5]}
2... Ne4 {[%clk 0:02:23.7]} 3. Bf4 {[%clk 0:02:57.1]} 3... c5 {[%clk 0:02:23.4]}
4. f3 {[%clk 0:02:55.5]} 4... Qa5+ {[%clk 0:02:23.5]} 5. c3 {[%clk 0:02:54.8]}
5... Nf6 {[%clk 0:02:22.2]} 6. d5 {[%clk 0:02:53.1]} 6... Qb6 {[%clk 0:02:19.7]}
7. Bc1 {[%clk 0:02:52]} 7... e6 {[%clk 0:02:13.4]} 8. e4 {[%clk 0:02:51.5]} 8...
exd5 {[%clk 0:02:13.1]} 9. exd5 {[%clk 0:02:52.4]} 9... Bd6 {[%clk 0:02:11.8]}
10. Na3 {[%clk 0:02:51]} 10... O-O {[%clk 0:02:06]} 11. Bd3 {[%clk 0:02:46.5]}
11... Re8+ {[%clk 0:02:00.8]} 12. Ne2 {[%clk 0:02:45.4]} 12... Bf8 {[%clk
0:01:37.4]} 13. Nc4 {[%clk 0:02:33.7]} 13... Qc7 {[%clk 0:01:37.5]} 14. Ne3
{[%clk 0:02:31.5]} 14... d6 {[%clk 0:01:36.2]} 15. Kf2 {[%clk 0:02:30.9]} 15...
a6 {[%clk 0:01:35.6]} 16. a4 {[%clk 0:02:28.8]} 16... Nbd7 {[%clk 0:01:33.4]}
17. g4 {[%clk 0:02:10.9]} 17... Ne5 {[%clk 0:01:31.9]} 18. Bc2 {[%clk
0:02:10.9]} 18... c4 {[%clk 0:01:29.1]} 19. Nd4 {[%clk 0:02:01.5]} 19... Bd7
{[%clk 0:01:24.3]} 20. h4 {[%clk 0:01:55.3]} 20... Qc5 {[%clk 0:01:21.6]} 21.
Ndf5 {[%clk 0:01:35.7]} 21... Nexg4+ {[%clk 0:01:20.3]} 22. fxg4 {[%clk
0:01:33.8]} 22... g6 {[%clk 0:01:11]} 23. Nd4 {[%clk 0:01:29.9]} 23... Nxd5
{[%clk 0:01:07.7]} 24. Nxd5 {[%clk 0:01:24.1]} 24... Qxd5 {[%clk 0:01:08.6]} 25.
Qf3 {[%clk 0:01:23.6]} 25... Qc5 {[%clk 0:00:57.3]} 26. Bd2 {[%clk 0:01:14.2]}
26... Bc6 {[%clk 0:00:57.7]} 27. Qf4 {[%clk 0:01:04.8]} 27... Bxh1 {[%clk
0:00:57.4]} 28. Rxh1 {[%clk 0:01:05.7]} 28... Bg7 {[%clk 0:00:57]} 29. h5 {[%clk
0:01:05]} 29... b5 {[%clk 0:00:53.7]} 30. hxg6 {[%clk 0:01:00.5]} 30... fxg6
{[%clk 0:00:53.8]} 31. Kg2 {[%clk 0:00:57.9]} 31... Rf8 {[%clk 0:00:52.4]} 32.
Qe4 {[%clk 0:00:53.9]} 32... Rae8 {[%clk 0:00:51.2]} 33. Qb7 {[%clk 0:00:48.8]}
33... Rf7 {[%clk 0:00:40.4]} 34. Qxa6 {[%clk 0:00:20.6]} 34... Bxd4 {[%clk
0:00:40.1]} 35. cxd4 {[%clk 0:00:14.1]} 35... Qd5+ {[%clk 0:00:40.3]} 36. Kg3
{[%clk 0:00:08.8]} 36... Qf3+ {[%clk 0:00:37.8]} 37. Kh4 {[%clk 0:00:05.2]}
37... Qxh1+ {[%clk 0:00:36.7]} 38. Kg5 {[%clk 0:00:03.8]} 38... h6+ {[%clk
0:00:25.6]} 39. Kxg6 {[%clk 0:00:03.1]} 39... Re6# {[%clk 0:00:25.7]} 0-1

[Event "*** Titled Tuesday Blitz"]
[Site "Chess.com"]
[Date "2021.02.09"]
[Round "9"]
[White "woodhy"]
[Black "mikolka1985"]
[Result "0-1"]
[WhiteElo "2460"]
[BlackElo "2603"]
[TimeControl "180+1"]
[EndTime "11:44:55 PST"]
[Termination "mikolka1985 won by resignation"]

1. e4 {[%clk 0:02:33.9]} 1... e5 {[%clk 0:02:58.7]} 2. Nf3 {[%clk 0:02:29.4]}
2... Nc6 {[%clk 0:02:58.1]} 3. Bb5 {[%clk 0:02:29.2]} 3... a6 {[%clk 0:02:57.1]}
4. Bxc6 {[%clk 0:02:29.4]} 4... dxc6 {[%clk 0:02:56.4]} 5. O-O {[%clk
0:02:30.3]} 5... Qf6 {[%clk 0:02:50.3]} 6. d3 {[%clk 0:02:27]} 6... Ne7 {[%clk
0:02:48.6]} 7. Be3 {[%clk 0:02:24.5]} 7... Ng6 {[%clk 0:02:47]} 8. Nbd2 {[%clk
0:02:25.4]} 8... c5 {[%clk 0:02:43.9]} 9. Qe2 {[%clk 0:02:24.8]} 9... Bd6 {[%clk
0:02:41.5]} 10. Rfe1 {[%clk 0:02:25]} 10... O-O {[%clk 0:02:40.7]} 11. Rad1
{[%clk 0:02:25.1]} 11... Qe6 {[%clk 0:02:38.5]} 12. Nc4 {[%clk 0:01:57.6]} 12...
Be7 {[%clk 0:02:36.4]} 13. a4 {[%clk 0:01:47]} 13... b6 {[%clk 0:02:32.4]} 14.
c3 {[%clk 0:01:44.1]} 14... f6 {[%clk 0:02:30.1]} 15. d4 {[%clk 0:01:42.5]}
15... exd4 {[%clk 0:02:28.4]} 16. cxd4 {[%clk 0:01:43.4]} 16... cxd4 {[%clk
0:01:52]} 17. Bxd4 {[%clk 0:01:22.3]} 17... Bb7 {[%clk 0:01:48.6]} 18. b3 {[%clk
0:01:16.8]} 18... Bb4 {[%clk 0:01:45.6]} 19. Nfd2 {[%clk 0:01:07.2]} 19... Rfe8
{[%clk 0:01:43.6]} 20. f3 {[%clk 0:01:06.4]} 20... Rad8 {[%clk 0:01:42.8]} 21.
Be3 {[%clk 0:01:04.8]} 21... f5 {[%clk 0:01:25]} 22. exf5 {[%clk 0:01:00.3]}
22... Qxf5 {[%clk 0:01:23.9]} 23. Qf2 {[%clk 0:00:58.3]} 23... Be7 {[%clk
0:01:21.3]} 24. Nf1 {[%clk 0:00:49.7]} 24... Rxd1 {[%clk 0:01:16.5]} 25. Rxd1
{[%clk 0:00:48.9]} 25... Bd5 {[%clk 0:01:07.2]} 26. Ng3 {[%clk 0:00:27.2]} 26...
Qf7 {[%clk 0:01:05.9]} 27. Qc2 {[%clk 0:00:25.8]} 27... b5 {[%clk 0:00:46.3]}
28. axb5 {[%clk 0:00:25.3]} 28... axb5 {[%clk 0:00:45.9]} 29. Nd2 {[%clk
0:00:20.3]} 29... Bf8 {[%clk 0:00:42.2]} 30. Bf2 {[%clk 0:00:20.3]} 30... Nf4
{[%clk 0:00:38.1]} 31. Nge4 {[%clk 0:00:20.3]} 31... Qg6 {[%clk 0:00:35.7]} 32.
Bg3 {[%clk 0:00:19.7]} 32... Ne2+ {[%clk 0:00:34]} 33. Kf2 {[%clk 0:00:19.9]}
33... Nxg3 {[%clk 0:00:29.8]} 34. hxg3 {[%clk 0:00:20.8]} 34... Bd6 {[%clk
0:00:23.7]} 35. Nxd6 {[%clk 0:00:19.5]} 35... Qxc2 {[%clk 0:00:22.6]} 36. Nxe8
{[%clk 0:00:18.8]} 36... Qxd1 {[%clk 0:00:22.1]} 37. Ke3 {[%clk 0:00:17.6]}
37... c5 {[%clk 0:00:19.5]} 38. Nc7 {[%clk 0:00:17.2]} 38... Qe1+ {[%clk
0:00:18.8]} 39. Kd3 {[%clk 0:00:17.6]} 39... Bf7 {[%clk 0:00:17.4]} 40. Nxb5
{[%clk 0:00:17]} 40... Qf2 {[%clk 0:00:16]} 41. g4 {[%clk 0:00:15.2]} 41... Bg6+
{[%clk 0:00:14.9]} 42. Kc3 {[%clk 0:00:14.3]} 42... Qe3+ {[%clk 0:00:14.9]} 0-1

[Event "*** Titled Tuesday Blitz"]
[Site "Chess.com"]
[Date "2021.02.09"]
[Round "9"]
[White "malakismayil"]
[Black "awesomevishesh"]
[Result "0-1"]
[WhiteElo "2372"]
[BlackElo "2499"]
[TimeControl "180+1"]
[EndTime "11:44:56 PST"]
[Termination "awesomevishesh won by checkmate"]

1. e4 {[%clk 0:03:00.9]} 1... c5 {[%clk 0:02:59.6]} 2. Nf3 {[%clk 0:02:57.4]}
2... d6 {[%clk 0:02:59.4]} 3. d4 {[%clk 0:02:57.1]} 3... cxd4 {[%clk 0:03:00.3]}
4. Nxd4 {[%clk 0:02:57.7]} 4... Nf6 {[%clk 0:03:00.3]} 5. Nc3 {[%clk 0:02:57.9]}
5... a6 {[%clk 0:03:00.7]} 6. Bc4 {[%clk 0:02:58.2]} 6... e6 {[%clk 0:03:00.6]}
7. a3 {[%clk 0:02:47.6]} 7... Nc6 {[%clk 0:02:56.9]} 8. Nb3 {[%clk 0:02:43.4]}
8... Be7 {[%clk 0:02:56.2]} 9. O-O {[%clk 0:02:35]} 9... b5 {[%clk 0:02:55.9]}
10. Bd3 {[%clk 0:02:33.2]} 10... O-O {[%clk 0:02:55.2]} 11. f4 {[%clk
0:02:28.2]} 11... Bb7 {[%clk 0:02:55.2]} 12. Qe2 {[%clk 0:02:25.1]} 12... Qc7
{[%clk 0:02:42.2]} 13. Bd2 {[%clk 0:02:24.6]} 13... Nd7 {[%clk 0:02:26.6]} 14.
Kh1 {[%clk 0:02:20.5]} 14... Bf6 {[%clk 0:01:57.2]} 15. Rae1 {[%clk 0:02:13]}
15... Nd4 {[%clk 0:01:46.1]} 16. Nxd4 {[%clk 0:02:11.8]} 16... Bxd4 {[%clk
0:01:47]} 17. f5 {[%clk 0:02:08.1]} 17... exf5 {[%clk 0:01:36.3]} 18. Rxf5
{[%clk 0:01:59]} 18... Rae8 {[%clk 0:01:25.4]} 19. Qg4 {[%clk 0:01:47]} 19... g6
{[%clk 0:01:21.6]} 20. Rff1 {[%clk 0:01:15.5]} 20... Bg7 {[%clk 0:01:16.6]} 21.
Qg3 {[%clk 0:01:09]} 21... Ne5 {[%clk 0:01:11.7]} 22. Bf4 {[%clk 0:00:58.2]}
22... Re6 {[%clk 0:00:55.7]} 23. Nd5 {[%clk 0:00:52.8]} 23... Bxd5 {[%clk
0:00:54.9]} 24. exd5 {[%clk 0:00:53.7]} 24... Re7 {[%clk 0:00:55.1]} 25. c3
{[%clk 0:00:40.2]} 25... Rfe8 {[%clk 0:00:50.3]} 26. Bb1 {[%clk 0:00:31.6]}
26... Nc4 {[%clk 0:00:43.3]} 27. Bg5 {[%clk 0:00:19.9]} 27... Rxe1 {[%clk
0:00:40.7]} 28. Rxe1 {[%clk 0:00:19.6]} 28... Rxe1+ {[%clk 0:00:32.8]} 29. Qxe1
{[%clk 0:00:20.5]} 29... Be5 {[%clk 0:00:25.8]} 30. Bc1 {[%clk 0:00:18.9]} 30...
Qd8 {[%clk 0:00:23.7]} 31. Bd3 {[%clk 0:00:17]} 31... Nb6 {[%clk 0:00:22.9]} 32.
Qe4 {[%clk 0:00:14.5]} 32... Qf6 {[%clk 0:00:22.5]} 33. Be3 {[%clk 0:00:10]}
33... Nd7 {[%clk 0:00:21]} 34. h3 {[%clk 0:00:08.6]} 34... h5 {[%clk 0:00:20.6]}
35. Qf3 {[%clk 0:00:08.7]} 35... Qh4 {[%clk 0:00:18.2]} 36. Bf2 {[%clk
0:00:07.4]} 36... Qe7 {[%clk 0:00:17.7]} 37. Qe2 {[%clk 0:00:06.8]} 37... Kg7
{[%clk 0:00:17.2]} 38. Be4 {[%clk 0:00:05.7]} 38... Qf6 {[%clk 0:00:16.1]} 39.
Bf3 {[%clk 0:00:05.7]} 39... Qf4 {[%clk 0:00:15.6]} 40. Be3 {[%clk 0:00:05.7]}
40... Qh2# {[%clk 0:00:15.2]} 0-1

[Event "*** Titled Tuesday Blitz"]
[Site "Chess.com"]
[Date "2021.02.09"]
[Round "9"]
[White "federicosellitti"]
[Black "bugsbunny444"]
[Result "0-1"]
[WhiteElo "2456"]
[BlackElo "2597"]
[TimeControl "180+1"]
[EndTime "11:44:58 PST"]
[Termination "bugsbunny444 won by resignation"]

1. e4 {[%clk 0:03:00.9]} 1... c5 {[%clk 0:02:59.7]} 2. Nc3 {[%clk 0:03:00.6]}
2... e6 {[%clk 0:03:00.1]} 3. g3 {[%clk 0:03:00.1]} 3... d5 {[%clk 0:03:00]} 4.
Bg2 {[%clk 0:02:58]} 4... dxe4 {[%clk 0:02:59.7]} 5. Nxe4 {[%clk 0:02:58]} 5...
Nd7 {[%clk 0:03:00.3]} 6. Ne2 {[%clk 0:02:56.2]} 6... Ngf6 {[%clk 0:03:00.8]} 7.
N2c3 {[%clk 0:02:56.7]} 7... Be7 {[%clk 0:02:54.1]} 8. O-O {[%clk 0:02:51.9]}
8... O-O {[%clk 0:02:53.9]} 9. d3 {[%clk 0:02:51.6]} 9... Nxe4 {[%clk
0:02:40.2]} 10. Nxe4 {[%clk 0:02:52.5]} 10... Nf6 {[%clk 0:02:39.6]} 11. Be3
{[%clk 0:02:53]} 11... Qb6 {[%clk 0:02:35.3]} 12. b4 {[%clk 0:02:17]} 12... Qxb4
{[%clk 0:02:19.1]} 13. Rb1 {[%clk 0:02:16]} 13... Qa5 {[%clk 0:01:57]} 14. Bg5
{[%clk 0:02:15.6]} 14... Nd5 {[%clk 0:01:37.6]} 15. Bxe7 {[%clk 0:02:13]} 15...
Nxe7 {[%clk 0:01:37.8]} 16. Qh5 {[%clk 0:02:13.7]} 16... Nf5 {[%clk 0:01:10.2]}
17. Rfe1 {[%clk 0:01:25.2]} 17... Rb8 {[%clk 0:01:05]} 18. Bh3 {[%clk
0:01:24.4]} 18... Bd7 {[%clk 0:00:37]} 19. f4 {[%clk 0:01:02.8]} 19... Qc7
{[%clk 0:00:14.8]} 20. g4 {[%clk 0:00:42.2]} 20... Nd4 {[%clk 0:00:14.6]} 21.
Bg2 {[%clk 0:00:41.1]} 21... b6 {[%clk 0:00:12.9]} 22. f5 {[%clk 0:00:39.5]}
22... exf5 {[%clk 0:00:12.8]} 23. gxf5 {[%clk 0:00:37.4]} 23... Bxf5 {[%clk
0:00:10.9]} 24. Nc3 {[%clk 0:00:37.6]} 24... Bg6 {[%clk 0:00:05.6]} 25. Qd1
{[%clk 0:00:28.1]} 25... Rbe8 {[%clk 0:00:04.1]} 26. Nd5 {[%clk 0:00:26]} 26...
Qd8 {[%clk 0:00:04.3]} 27. Qd2 {[%clk 0:00:24.4]} 27... h6 {[%clk 0:00:03.3]}
28. Kh1 {[%clk 0:00:22.1]} 28... Rxe1+ {[%clk 0:00:03.1]} 29. Rxe1 {[%clk
0:00:21.7]} 29... Re8 {[%clk 0:00:04]} 30. Rg1 {[%clk 0:00:22.3]} 30... Re5
{[%clk 0:00:03.7]} 31. Nf4 {[%clk 0:00:19.4]} 31... Qg5 {[%clk 0:00:02.9]} 32.
Bh3 {[%clk 0:00:15.3]} 32... Qxg1+ {[%clk 0:00:01.8]} 33. Kxg1 {[%clk
0:00:13.9]} 33... Nf3+ {[%clk 0:00:02.7]} 34. Kf2 {[%clk 0:00:14.8]} 34... Nxd2
{[%clk 0:00:03.6]} 35. d4 {[%clk 0:00:15.2]} 35... Re4 {[%clk 0:00:03.6]} 36.
Nd3 {[%clk 0:00:16.1]} 36... Rxd4 {[%clk 0:00:03.9]} 37. Ke3 {[%clk 0:00:16.7]}
37... Bxd3 {[%clk 0:00:04.2]} 38. cxd3 {[%clk 0:00:17.2]} 38... Nb1 {[%clk
0:00:04.3]} 39. Bg2 {[%clk 0:00:12.9]} 39... Nc3 {[%clk 0:00:04.7]} 40. Kd2
{[%clk 0:00:12.5]} 40... Nd5 {[%clk 0:00:05.2]} 41. Ke2 {[%clk 0:00:11.9]} 41...
Nf4+ {[%clk 0:00:05.8]} 0-1

[Event "*** Titled Tuesday Blitz"]
[Site "Chess.com"]
[Date "2021.02.09"]
[Round "9"]
[White "Ekose"]
[Black "ural58"]
[Result "1-0"]
[WhiteElo "2609"]
[BlackElo "2494"]
[TimeControl "180+1"]
[EndTime "11:44:59 PST"]
[Termination "Ekose won on time"]

1. Nf3 {[%clk 0:02:48]} 1... d5 {[%clk 0:02:57.5]} 2. e3 {[%clk 0:02:47.7]} 2...
Nc6 {[%clk 0:02:53]} 3. c4 {[%clk 0:02:47.3]} 3... dxc4 {[%clk 0:02:51.7]} 4.
Bxc4 {[%clk 0:02:46.6]} 4... e5 {[%clk 0:02:51.3]} 5. d3 {[%clk 0:02:45.3]} 5...
Bd6 {[%clk 0:02:31.1]} 6. O-O {[%clk 0:02:44.7]} 6... Nf6 {[%clk 0:01:57.4]} 7.
Nbd2 {[%clk 0:02:44]} 7... O-O {[%clk 0:01:57.1]} 8. a3 {[%clk 0:02:40.4]} 8...
Qe7 {[%clk 0:01:55.9]} 9. Qc2 {[%clk 0:02:38.4]} 9... a6 {[%clk 0:01:55.4]} 10.
b4 {[%clk 0:02:37.6]} 10... b5 {[%clk 0:01:52.9]} 11. Ba2 {[%clk 0:02:31.5]}
11... Bb7 {[%clk 0:01:52.6]} 12. Bb2 {[%clk 0:02:31.3]} 12... Rac8 {[%clk
0:01:48.7]} 13. Rac1 {[%clk 0:02:30.2]} 13... Nd8 {[%clk 0:01:38.3]} 14. Nb3
{[%clk 0:02:03.1]} 14... Bd5 {[%clk 0:01:32.9]} 15. Ba1 {[%clk 0:01:58]} 15...
h6 {[%clk 0:01:26.8]} 16. e4 {[%clk 0:01:54.1]} 16... Be6 {[%clk 0:01:24]} 17.
Nc5 {[%clk 0:01:52.6]} 17... Bxa2 {[%clk 0:01:22.2]} 18. Qxa2 {[%clk 0:01:53.5]}
18... a5 {[%clk 0:01:15.2]} 19. Rfe1 {[%clk 0:01:48.1]} 19... c6 {[%clk
0:01:11.6]} 20. d4 {[%clk 0:01:46.1]} 20... axb4 {[%clk 0:01:10.9]} 21. axb4
{[%clk 0:01:46]} 21... Bxc5 {[%clk 0:01:09.7]} 22. Rxc5 {[%clk 0:01:08.6]} 22...
exd4 {[%clk 0:01:08.9]} 23. Nxd4 {[%clk 0:01:09]} 23... Nd7 {[%clk 0:01:03]} 24.
Nf5 {[%clk 0:01:01.8]} 24... Qe6 {[%clk 0:01:02.1]} 25. Qb2 {[%clk 0:00:58.3]}
25... f6 {[%clk 0:01:00.5]} 26. Rc3 {[%clk 0:00:50.1]} 26... Ne5 {[%clk
0:01:00]} 27. Rg3 {[%clk 0:00:47.9]} 27... Rc7 {[%clk 0:00:46.8]} 28. Nxh6+
{[%clk 0:00:46.5]} 28... Kh7 {[%clk 0:00:46.9]} 29. Nf5 {[%clk 0:00:47.2]} 29...
g6 {[%clk 0:00:44.9]} 30. Qe2 {[%clk 0:00:44.8]} 30... Ndf7 {[%clk 0:00:36.5]}
31. Nh4 {[%clk 0:00:39.5]} 31... Ng5 {[%clk 0:00:30.8]} 32. f4 {[%clk
0:00:37.4]} 32... Nef7 {[%clk 0:00:14.8]} 33. Nxg6 {[%clk 0:00:29.1]} 33... Re8
{[%clk 0:00:09.3]} 34. fxg5 {[%clk 0:00:26.5]} 34... Kxg6 {[%clk 0:00:07.6]} 35.
gxf6+ {[%clk 0:00:25.2]} 35... Ng5 {[%clk 0:00:07.9]} 36. h4 {[%clk 0:00:21.7]}
36... Kf7 {[%clk 0:00:03.8]} 37. hxg5 {[%clk 0:00:20.4]} 37... Rg8 {[%clk
0:00:03.8]} 38. Qh5+ {[%clk 0:00:19.2]} 38... Kf8 {[%clk 0:00:01.4]} 39. g6
{[%clk 0:00:17.7]} 39... Qd6 {[%clk 0:00:01.4]} 40. Qh6+ {[%clk 0:00:16.3]}
40... Ke8 {[%clk 0:00:01.1]} 41. f7+ {[%clk 0:00:16.8]} 1-0

[Event "*** Titled Tuesday Blitz"]
[Site "Chess.com"]
[Date "2021.02.09"]
[Round "9"]
[White "lucachess49"]
[Black "anon481216"]
[Result "1-0"]
[WhiteElo "2360"]
[BlackElo "2459"]
[TimeControl "180+1"]
[EndTime "11:45:00 PST"]
[Termination "lucachess49 won by resignation"]

1. d4 {[%clk 0:03:00.9]} 1... Nf6 {[%clk 0:02:59.8]} 2. c4 {[%clk 0:02:59.9]}
2... e5 {[%clk 0:03:00.2]} 3. dxe5 {[%clk 0:02:59.5]} 3... Ng4 {[%clk
0:02:59.5]} 4. Bf4 {[%clk 0:02:59.8]} 4... Nc6 {[%clk 0:02:53.1]} 5. Nf3 {[%clk
0:02:48]} 5... Bb4+ {[%clk 0:02:53.5]} 6. Nc3 {[%clk 0:02:44.7]} 6... Qe7 {[%clk
0:02:50.5]} 7. Qb3 {[%clk 0:02:18.7]} 7... Na5 {[%clk 0:02:48.7]} 8. Qc2 {[%clk
0:01:27.9]} 8... Nxc4 {[%clk 0:02:48.1]} 9. a3 {[%clk 0:01:19.7]} 9... Ba5
{[%clk 0:02:45.9]} 10. b4 {[%clk 0:01:17.3]} 10... Bb6 {[%clk 0:02:44]} 11. e3
{[%clk 0:01:15.1]} 11... Ncxe5 {[%clk 0:02:42.3]} 12. Nd5 {[%clk 0:00:58.1]}
12... Qe6 {[%clk 0:02:37.5]} 13. Nxe5 {[%clk 0:00:47.6]} 13... Nxe5 {[%clk
0:02:34.7]} 14. Nxc7+ {[%clk 0:00:47.9]} 14... Bxc7 {[%clk 0:02:34.4]} 15. Qxc7
{[%clk 0:00:48.8]} 15... f6 {[%clk 0:02:32.2]} 16. Rd1 {[%clk 0:00:32.2]} 16...
O-O {[%clk 0:02:16]} 17. Bxe5 {[%clk 0:00:28.1]} 17... Qxe5 {[%clk 0:02:15.3]}
18. Bc4+ {[%clk 0:00:28.2]} 18... Kh8 {[%clk 0:02:14.9]} 19. Qxe5 {[%clk
0:00:28.1]} 19... fxe5 {[%clk 0:02:14.8]} 20. Ke2 {[%clk 0:00:28.9]} 20... b6
{[%clk 0:02:05.4]} 21. Bd5 {[%clk 0:00:26.5]} 21... Ba6+ {[%clk 0:02:02.3]} 22.
Ke1 {[%clk 0:00:24.8]} 22... Rac8 {[%clk 0:02:01.2]} 23. f3 {[%clk 0:00:24.4]}
23... Rc3 {[%clk 0:02:00]} 24. Kf2 {[%clk 0:00:23.5]} 24... Rc2+ {[%clk
0:01:37.2]} 25. Kg3 {[%clk 0:00:22.7]} 25... Rc3 {[%clk 0:01:37.5]} 26. Be4
{[%clk 0:00:20.5]} 26... Rxa3 {[%clk 0:01:24.1]} 27. Rxd7 {[%clk 0:00:14.4]}
27... Rxe3 {[%clk 0:01:19.3]} 28. Rxa7 {[%clk 0:00:12.8]} 28... Bd3 {[%clk
0:01:15.8]} 29. Ra3 {[%clk 0:00:10]} 29... Rxe4 {[%clk 0:01:03]} 30. fxe4 {[%clk
0:00:08.9]} 30... Bxe4 {[%clk 0:01:03.3]} 31. Re1 {[%clk 0:00:08.6]} 31... Bc6
{[%clk 0:00:46.5]} 32. Rxe5 {[%clk 0:00:08.3]} 32... h6 {[%clk 0:00:47]} 33. b5
{[%clk 0:00:08.5]} 33... Bd7 {[%clk 0:00:46.7]} 34. Ra6 {[%clk 0:00:08.8]} 34...
Rf6 {[%clk 0:00:46.2]} 35. Ra8+ {[%clk 0:00:06.8]} 35... Kh7 {[%clk 0:00:45.5]}
36. Ra7 {[%clk 0:00:07.4]} 36... Bf5 {[%clk 0:00:39]} 37. h4 {[%clk 0:00:06.4]}
37... h5 {[%clk 0:00:33.8]} 38. Ree7 {[%clk 0:00:05.1]} 38... Rg6+ {[%clk
0:00:33.1]} 39. Kh2 {[%clk 0:00:05.3]} 39... Bd3 {[%clk 0:00:32.3]} 40. Re5
{[%clk 0:00:05.4]} 40... Kh6 {[%clk 0:00:29.3]} 41. Ra8 {[%clk 0:00:03.8]} 41...
Kh7 {[%clk 0:00:24.1]} 42. Rxh5+ {[%clk 0:00:03.6]} 42... Rh6 {[%clk 0:00:23.8]}
43. Rxh6+ {[%clk 0:00:03.7]} 43... Kxh6 {[%clk 0:00:21.2]} 44. Rb8 {[%clk
0:00:03.7]} 44... g5 {[%clk 0:00:18.6]} 45. Rxb6+ {[%clk 0:00:03.6]} 1-0